[Event "Titled Tuesday Blitz July 18 Late 2023"]
[White "Taranenko, Evgueniy"]
[Black "Real_taiatai"]
[WhiteFideId "14122138"]
[WhiteElo "2747"]
[BlackElo "2339"]
[Result "1-0"]
[Round "3"]
[TimeControl "180+2"]
[Date "2023.07.18"]
[WhiteClock "0:00:45"]
[BlackClock "0:00:07"]
[Board "40"]

1. e4 {[%clk 0:03:00]}  e5 {[%clk 0:02:59]} 2. Nf3 {[%clk 0:03:00]}  Nc6 {[%clk 0:02:59]} 3. Bc4 {[%clk 0:03:01]}  Nf6 {[%clk 0:02:59]} 4. Ng5 {[%clk 0:03:01]}  d5 {[%clk 0:02:59]} 5. exd5 {[%clk 0:03:01]}  Na5 {[%clk 0:02:59]} 6. Bb5+ {[%clk 0:03:02]}  c6 {[%clk 0:03:00]} 7. dxc6 {[%clk 0:03:03]}  bxc6 {[%clk 0:03:00]} 8. Qf3 {[%clk 0:03:03]}  h6 {[%clk 0:02:42]} 9. Ne4 {[%clk 0:02:59]}  Nd5 {[%clk 0:02:41]} 10. Bd3 {[%clk 0:02:49]}  Be6 {[%clk 0:02:36]} 11. a3 {[%clk 0:02:46]}  Be7 {[%clk 0:02:34]} 12. Ng3 {[%clk 0:02:43]}  O-O {[%clk 0:02:26]} 13. Bf5 {[%clk 0:02:42]}  Nf4 {[%clk 0:01:57]} 14. d3 {[%clk 0:02:36]}  Bd5 {[%clk 0:01:56]} 15. Be4 {[%clk 0:02:35]}  Bxe4 {[%clk 0:01:49]} 16. dxe4 {[%clk 0:02:30]}  Ne6 {[%clk 0:01:47]} 17. Nf5 {[%clk 0:02:25]}  Bg5 {[%clk 0:01:43]} 18. O-O {[%clk 0:02:22]}  Nc4 {[%clk 0:01:41]} 19. b3 {[%clk 0:02:11]}  Nd4 {[%clk 0:01:27]} 20. Nxd4 {[%clk 0:02:04]}  Qxd4 {[%clk 0:01:23]} 21. c3 {[%clk 0:02:04]}  Qb6 {[%clk 0:01:15]} 22. Bxg5 {[%clk 0:01:57]}  hxg5 {[%clk 0:01:08]} 23. bxc4 {[%clk 0:01:47]}  Qb2 {[%clk 0:01:07]} 24. Nd2 {[%clk 0:01:47]}  Qxd2 {[%clk 0:01:07]} 25. Rad1 {[%clk 0:01:41]}  Qb2 {[%clk 0:01:06]} 26. Rd6 {[%clk 0:01:35]}  Qxa3 {[%clk 0:00:57]} 27. Rxc6 {[%clk 0:01:35]}  Rfc8 {[%clk 0:00:56]} 28. Rxc8+ {[%clk 0:01:31]}  Rxc8 {[%clk 0:00:56]} 29. Rd1 {[%clk 0:01:30]}  Qe7 {[%clk 0:00:53]} 30. Qf5 {[%clk 0:01:24]}  Rd8 {[%clk 0:00:46]} 31. Rd5 {[%clk 0:01:15]}  Rb8 {[%clk 0:00:44]} 32. g3 {[%clk 0:01:11]}  g6 {[%clk 0:00:16]} 33. Qxe5 {[%clk 0:01:06]}  Qxe5 {[%clk 0:00:16]} 34. Rxe5 {[%clk 0:01:07]}  Rc8 {[%clk 0:00:12]} 35. Rxg5 {[%clk 0:01:00]}  Rxc4 {[%clk 0:00:11]} 36. Ra5 {[%clk 0:01:00]}  Rxc3 {[%clk 0:00:09]} 37. Rxa7 {[%clk 0:01:00]}  Rc4 {[%clk 0:00:09]} 38. f3 {[%clk 0:00:57]}  Kg7 {[%clk 0:00:10]} 39. Ra2 {[%clk 0:00:56]}  Rc3 {[%clk 0:00:10]} 40. Kf2 {[%clk 0:00:56]}  Kf6 {[%clk 0:00:11]} 41. Rd2 {[%clk 0:00:56]}  Kg5 {[%clk 0:00:11]} 42. h4+ {[%clk 0:00:55]}  Kf6 {[%clk 0:00:11]} 43. Ke2 {[%clk 0:00:55]}  Rb3 {[%clk 0:00:10]} 44. Rd3 {[%clk 0:00:55]}  Rb2+ {[%clk 0:00:11]} 45. Ke3 {[%clk 0:00:56]}  Rb1 {[%clk 0:00:12]} 46. Kf4 {[%clk 0:00:56]}  Rg1 {[%clk 0:00:12]} 47. Rd6+ {[%clk 0:00:55]}  Kg7 {[%clk 0:00:12]} 48. Ra6 {[%clk 0:00:55]}  Re1 {[%clk 0:00:13]} 49. g4 {[%clk 0:00:55]}  Rb1 {[%clk 0:00:14]} 50. Ra7 {[%clk 0:00:52]}  Rb5 {[%clk 0:00:13]} 51. e5 {[%clk 0:00:52]}  Rb4+ {[%clk 0:00:14]} 52. Kg3 {[%clk 0:00:51]}  Rb5 {[%clk 0:00:14]} 53. e6 {[%clk 0:00:51]}  Kh6 {[%clk 0:00:13]} 54. Rxf7 {[%clk 0:00:50]}  g5 {[%clk 0:00:13]} 55. hxg5+ {[%clk 0:00:45]}  Kg6 {[%clk 0:00:11]} 56. Rf6+ {[%clk 0:00:44]}  Kxg5 {[%clk 0:00:12]} 57. Rf5+ {[%clk 0:00:44]}  Rxf5 {[%clk 0:00:07]} 58. gxf5 {[%clk 0:00:45]} 1-0


[Site "https://www.chess.com"]

[Event "Titled Tuesday Blitz July 18 Late 2023"]
[White "Mikhailovsky, Vladimir"]
[Black "Francisco_Ferrari"]
[WhiteFideId "34105414"]
[WhiteElo "2737"]
[BlackElo "2195"]
[Result "1-0"]
[Round "3"]
[TimeControl "180+2"]
[Date "2023.07.18"]
[WhiteClock "0:00:20"]
[BlackClock "0:00:13"]
[Board "42"]

1. e4 {[%clk 0:03:00]}  e5 {[%clk 0:02:55]} 2. Nf3 {[%clk 0:02:59]}  Nc6 {[%clk 0:02:55]} 3. Nc3 {[%clk 0:03:00]}  Nf6 {[%clk 0:02:53]} 4. d4 {[%clk 0:03:00]}  exd4 {[%clk 0:02:53]} 5. Nxd4 {[%clk 0:03:01]}  Bb4 {[%clk 0:02:48]} 6. Nxc6 {[%clk 0:03:00]}  bxc6 {[%clk 0:02:48]} 7. Bd3 {[%clk 0:03:01]}  O-O {[%clk 0:02:45]} 8. O-O {[%clk 0:03:01]}  Re8 {[%clk 0:02:42]} 9. Qf3 {[%clk 0:03:00]}  d5 {[%clk 0:02:26]} 10. exd5 {[%clk 0:03:00]}  cxd5 {[%clk 0:01:46]} 11. h3 {[%clk 0:03:00]}  h6 {[%clk 0:01:37]} 12. Bf4 {[%clk 0:03:00]}  c6 {[%clk 0:01:16]} 13. Rad1 {[%clk 0:02:53]}  Be6 {[%clk 0:01:10]} 14. Ne2 {[%clk 0:02:45]}  Bd6 {[%clk 0:01:04]} 15. Nd4 {[%clk 0:02:34]}  Qc7 {[%clk 0:00:59]} 16. Bxh6 {[%clk 0:02:29]}  Be5 {[%clk 0:00:51]} 17. Be3 {[%clk 0:02:12]}  Ne4 {[%clk 0:00:43]} 18. Bxe4 {[%clk 0:02:06]}  dxe4 {[%clk 0:00:44]} 19. Qe2 {[%clk 0:01:28]}  Bd5 {[%clk 0:00:35]} 20. c4 {[%clk 0:01:26]}  Be6 {[%clk 0:00:34]} 21. b3 {[%clk 0:01:25]}  a5 {[%clk 0:00:31]} 22. Qc2 {[%clk 0:00:55]}  a4 {[%clk 0:00:28]} 23. Rfe1 {[%clk 0:00:48]}  axb3 {[%clk 0:00:27]} 24. axb3 {[%clk 0:00:49]}  Ra3 {[%clk 0:00:19]} 25. Bc1 {[%clk 0:00:40]}  Raa8 {[%clk 0:00:18]} 26. Qxe4 {[%clk 0:00:37]}  Bxh3 {[%clk 0:00:16]} 27. Qxc6 {[%clk 0:00:24]}  Qxc6 {[%clk 0:00:05]} 28. Nxc6 {[%clk 0:00:24]}  Bc3 {[%clk 0:00:04]} 29. Rxe8+ {[%clk 0:00:24]}  Rxe8 {[%clk 0:00:05]} 30. gxh3 {[%clk 0:00:24]}  Re6 {[%clk 0:00:06]} 31. Nd4 {[%clk 0:00:20]}  Rg6+ {[%clk 0:00:06]} 32. Kf1 {[%clk 0:00:21]}  Rd6 {[%clk 0:00:07]} 33. Be3 {[%clk 0:00:21]}  Rg6 {[%clk 0:00:08]} 34. c5 {[%clk 0:00:21]}  f5 {[%clk 0:00:08]} 35. c6 {[%clk 0:00:21]}  f4 {[%clk 0:00:09]} 36. c7 {[%clk 0:00:21]}  fxe3 {[%clk 0:00:08]} 37. c8=Q+ {[%clk 0:00:21]}  Kh7 {[%clk 0:00:09]} 38. Qxc3 {[%clk 0:00:21]}  exf2 {[%clk 0:00:09]} 39. Kxf2 {[%clk 0:00:20]}  Rg2+ {[%clk 0:00:09]} 40. Kxg2 {[%clk 0:00:20]}  g5 {[%clk 0:00:10]} 41. Qg3 {[%clk 0:00:19]}  g4 {[%clk 0:00:11]} 42. Qxg4 {[%clk 0:00:19]}  Kh6 {[%clk 0:00:12]} 43. Kh2 {[%clk 0:00:19]}  Kh7 {[%clk 0:00:12]} 44. Rg1 {[%clk 0:00:19]}  Kh6 {[%clk 0:00:13]} 45. Qh4# {[%clk 0:00:20]} 1-0


[Site "https://www.chess.com"]

[Event "Titled Tuesday Blitz July 18 Late 2023"]
[White "Jimenez Almeida, Luis David"]
[Black "Bortnyk, Mykola"]
[WhiteFideId "22242244"]
[BlackFideId "14120836"]
[WhiteElo "2577"]
[BlackElo "3035"]
[Result "0-1"]
[Round "3"]
[TimeControl "180+2"]
[Date "2023.07.18"]
[WhiteClock "0:00:01"]
[BlackClock "0:00:07"]
[Board "44"]

1. e4 {[%clk 0:03:00]}  Nf6 {[%clk 0:03:00]} 2. e5 {[%clk 0:03:00]}  Nd5 {[%clk 0:03:00]} 3. c4 {[%clk 0:03:00]}  Nb6 {[%clk 0:03:01]} 4. d4 {[%clk 0:03:01]}  d6 {[%clk 0:03:01]} 5. exd6 {[%clk 0:03:00]}  exd6 {[%clk 0:03:02]} 6. Nc3 {[%clk 0:02:59]}  Be7 {[%clk 0:03:02]} 7. Be3 {[%clk 0:02:58]}  O-O {[%clk 0:03:02]} 8. Be2 {[%clk 0:02:56]}  Nc6 {[%clk 0:03:01]} 9. Nf3 {[%clk 0:02:56]}  Bg4 {[%clk 0:03:01]} 10. b3 {[%clk 0:02:56]}  Bf6 {[%clk 0:03:01]} 11. O-O {[%clk 0:02:54]}  Re8 {[%clk 0:03:02]} 12. Qd2 {[%clk 0:02:52]}  h6 {[%clk 0:03:01]} 13. h3 {[%clk 0:02:50]}  Bh5 {[%clk 0:03:01]} 14. a4 {[%clk 0:02:48]}  a5 {[%clk 0:02:52]} 15. d5 {[%clk 0:02:25]}  Nb4 {[%clk 0:02:46]} 16. Bxb6 {[%clk 0:02:20]}  Bxc3 {[%clk 0:02:39]} 17. Qxc3 {[%clk 0:02:19]}  Rxe2 {[%clk 0:02:37]} 18. Bd4 {[%clk 0:02:08]}  Nc2 {[%clk 0:02:17]} 19. Bxg7 {[%clk 0:02:00]}  Nxa1 {[%clk 0:02:17]} 20. Bxh6 {[%clk 0:01:42]}  f6 {[%clk 0:02:17]} 21. Nd4 {[%clk 0:01:38]}  Re7 {[%clk 0:01:55]} 22. Ne6 {[%clk 0:01:26]}  Qe8 {[%clk 0:01:55]} 23. Rxa1 {[%clk 0:01:21]}  Qg6 {[%clk 0:01:49]} 24. Bf4 {[%clk 0:01:15]}  Kh7 {[%clk 0:01:19]} 25. Re1 {[%clk 0:01:14]}  Rae8 {[%clk 0:01:19]} 26. Re3 {[%clk 0:01:09]}  Qf5 {[%clk 0:01:12]} 27. g4 {[%clk 0:00:51]}  Qb1+ {[%clk 0:01:00]} 28. Re1 {[%clk 0:00:43]}  Qg6 {[%clk 0:01:00]} 29. Kh2 {[%clk 0:00:34]}  Bxg4 {[%clk 0:00:55]} 30. hxg4 {[%clk 0:00:35]}  Qxg4 {[%clk 0:00:53]} 31. Qh3+ {[%clk 0:00:35]}  Qxh3+ {[%clk 0:00:53]} 32. Kxh3 {[%clk 0:00:36]}  Kg6 {[%clk 0:00:47]} 33. Kg4 {[%clk 0:00:30]}  Rh7 {[%clk 0:00:42]} 34. Bg3 {[%clk 0:00:27]}  Kf7 {[%clk 0:00:36]} 35. Rc1 {[%clk 0:00:22]}  Rg8+ {[%clk 0:00:26]} 36. Kf3 {[%clk 0:00:22]}  c6 {[%clk 0:00:24]} 37. Bxd6 {[%clk 0:00:20]}  cxd5 {[%clk 0:00:25]} 38. cxd5 {[%clk 0:00:20]}  Rh3+ {[%clk 0:00:20]} 39. Bg3 {[%clk 0:00:19]}  Rhh8 {[%clk 0:00:15]} 40. Rc7+ {[%clk 0:00:19]}  Kg6 {[%clk 0:00:16]} 41. Rxb7 {[%clk 0:00:17]}  Rc8 {[%clk 0:00:16]} 42. Rc7 {[%clk 0:00:16]}  Rce8 {[%clk 0:00:14]} 43. Rc4 {[%clk 0:00:15]}  Rh7 {[%clk 0:00:10]} 44. Nf4+ {[%clk 0:00:14]}  Kf5 {[%clk 0:00:10]} 45. d6 {[%clk 0:00:14]}  Rb7 {[%clk 0:00:11]} 46. Rc5+ {[%clk 0:00:13]}  Re5 {[%clk 0:00:11]} 47. Rxe5+ {[%clk 0:00:05]}  fxe5 {[%clk 0:00:12]} 48. Nd5 {[%clk 0:00:04]}  Rxb3+ {[%clk 0:00:12]} 49. Kg2 {[%clk 0:00:05]}  Ke6 {[%clk 0:00:13]} 50. Ne3 {[%clk 0:00:03]}  Rb4 {[%clk 0:00:11]} 51. d7 {[%clk 0:00:02]}  Kxd7 {[%clk 0:00:10]} 52. Bxe5 {[%clk 0:00:02]}  Rxa4 {[%clk 0:00:11]} 53. f4 {[%clk 0:00:01]}  Ra2+ {[%clk 0:00:10]} 54. Kf3 {[%clk 0:00:02]}  a4 {[%clk 0:00:11]} 55. Ke4 {[%clk 0:00:03]}  a3 {[%clk 0:00:12]} 56. f5 {[%clk 0:00:03]}  Rf2 {[%clk 0:00:08]} 57. Nd5 {[%clk 0:00:02]}  a2 {[%clk 0:00:07]} 58. Ne3 {[%clk 0:00:02]}  Re2 {[%clk 0:00:06]} 59. Bf6 {[%clk 0:00:02]}  Re1 {[%clk 0:00:05]} 60. Be5 {[%clk 0:00:02]}  Ke7 {[%clk 0:00:06]} 61. f6+ {[%clk 0:00:02]}  Kf7 {[%clk 0:00:06]} 62. Bd4 {[%clk 0:00:03]}  Rb1 {[%clk 0:00:05]} 63. Be5 {[%clk 0:00:03]}  Rb5 {[%clk 0:00:05]} 64. Nd5 {[%clk 0:00:04]}  Ra5 {[%clk 0:00:04]} 65. Kd4 {[%clk 0:00:03]}  Ra4+ {[%clk 0:00:04]} 66. Ke3 {[%clk 0:00:03]}  Ke6 {[%clk 0:00:04]} 67. f7 {[%clk 0:00:03]}  Kxf7 {[%clk 0:00:05]} 68. Kd3 {[%clk 0:00:03]}  Ra5 {[%clk 0:00:05]} 69. Kc4 {[%clk 0:00:03]}  Ke6 {[%clk 0:00:05]} 70. Ba1 {[%clk 0:00:03]}  Rxd5 {[%clk 0:00:06]} 71. Kb3 {[%clk 0:00:03]}  Ra5 {[%clk 0:00:06]} 72. Kb4 {[%clk 0:00:01]}  Ra8 {[%clk 0:00:07]} 0-1


[Site "https://www.chess.com"]

[Event "Titled Tuesday Blitz July 18 Late 2023"]
[White "Paravyan, David"]
[Black "Dobrikov, Marco"]
[WhiteFideId "4194985"]
[BlackFideId "12950378"]
[WhiteElo "3019"]
[BlackElo "2571"]
[Result "1-0"]
[Round "3"]
[TimeControl "180+2"]
[Date "2023.07.18"]
[WhiteClock "0:01:57"]
[BlackClock "0:00:38"]
[Board "45"]

1. e4 {[%clk 0:03:00]}  c6 {[%clk 0:02:58]} 2. d4 {[%clk 0:03:00]}  d5 {[%clk 0:02:59]} 3. e5 {[%clk 0:03:01]}  Bf5 {[%clk 0:02:59]} 4. Nf3 {[%clk 0:03:01]}  e6 {[%clk 0:02:59]} 5. Be2 {[%clk 0:03:02]}  Nd7 {[%clk 0:02:59]} 6. O-O {[%clk 0:03:02]}  c5 {[%clk 0:02:58]} 7. c4 {[%clk 0:03:02]}  dxc4 {[%clk 0:02:55]} 8. Nc3 {[%clk 0:03:01]}  Ne7 {[%clk 0:02:53]} 9. Bxc4 {[%clk 0:03:01]}  Bg4 {[%clk 0:02:50]} 10. d5 {[%clk 0:02:58]}  exd5 {[%clk 0:02:44]} 11. Nxd5 {[%clk 0:02:57]}  Nxd5 {[%clk 0:02:31]} 12. Bxd5 {[%clk 0:02:57]}  Be7 {[%clk 0:02:31]} 13. Qb3 {[%clk 0:02:34]}  O-O {[%clk 0:02:30]} 14. e6 {[%clk 0:02:34]}  Bxe6 {[%clk 0:02:18]} 15. Bxe6 {[%clk 0:02:35]}  fxe6 {[%clk 0:02:19]} 16. Qxe6+ {[%clk 0:02:35]}  Rf7 {[%clk 0:02:10]} 17. Rd1 {[%clk 0:02:35]}  Bf6 {[%clk 0:02:11]} 18. Bg5 {[%clk 0:02:32]}  Qe8 {[%clk 0:02:08]} 19. Qb3 {[%clk 0:02:27]}  b6 {[%clk 0:01:43]} 20. Bxf6 {[%clk 0:02:22]}  gxf6 {[%clk 0:01:44]} 21. Re1 {[%clk 0:02:22]}  Qf8 {[%clk 0:01:42]} 22. Rad1 {[%clk 0:02:22]}  Kh8 {[%clk 0:01:39]} 23. Qe6 {[%clk 0:02:21]}  Qg7 {[%clk 0:01:33]} 24. g3 {[%clk 0:02:14]}  f5 {[%clk 0:01:18]} 25. Ng5 {[%clk 0:02:10]}  Rf6 {[%clk 0:01:07]} 26. Qxd7 {[%clk 0:02:09]}  Qxg5 {[%clk 0:01:08]} 27. Re7 {[%clk 0:02:09]}  Qg6 {[%clk 0:01:05]} 28. Qb7 {[%clk 0:01:58]}  Raf8 {[%clk 0:01:03]} 29. Rdd7 {[%clk 0:01:57]}  f4 {[%clk 0:00:37]} 30. Rxh7+ {[%clk 0:01:56]}  Kg8 {[%clk 0:00:38]} 31. Rdg7+ {[%clk 0:01:56]}  Qxg7 {[%clk 0:00:38]} 32. Qxg7# {[%clk 0:01:57]} 1-0


[Site "https://www.chess.com"]

[Event "Titled Tuesday Blitz July 18 Late 2023"]
[White "Gatineau, Yovann"]
[Black "Duda, Jan-Krzysztof"]
[WhiteFideId "26028999"]
[BlackFideId "1170546"]
[WhiteElo "2564"]
[BlackElo "3006"]
[Result "0-1"]
[Round "3"]
[TimeControl "180+2"]
[Date "2023.07.18"]
[WhiteClock "0:00:03"]
[BlackClock "0:00:48"]
[Board "46"]

1. d4 {[%clk 0:02:57]}  b6 {[%clk 0:03:00]} 2. e4 {[%clk 0:02:54]}  Bb7 {[%clk 0:03:01]} 3. f3 {[%clk 0:02:54]}  e6 {[%clk 0:03:00]} 4. c4 {[%clk 0:02:51]}  g6 {[%clk 0:02:59]} 5. Nc3 {[%clk 0:02:50]}  Bg7 {[%clk 0:02:59]} 6. Be3 {[%clk 0:02:50]}  d6 {[%clk 0:03:00]} 7. Bd3 {[%clk 0:02:50]}  Nd7 {[%clk 0:02:59]} 8. Nge2 {[%clk 0:02:50]}  Ne7 {[%clk 0:02:55]} 9. O-O {[%clk 0:02:49]}  a6 {[%clk 0:02:53]} 10. Qd2 {[%clk 0:02:49]}  h6 {[%clk 0:02:50]} 11. Rae1 {[%clk 0:02:48]}  c5 {[%clk 0:02:44]} 12. d5 {[%clk 0:02:47]}  e5 {[%clk 0:02:40]} 13. Kh1 {[%clk 0:02:35]}  Bc8 {[%clk 0:02:34]} 14. a3 {[%clk 0:02:28]}  f5 {[%clk 0:02:00]} 15. exf5 {[%clk 0:02:20]}  gxf5 {[%clk 0:02:01]} 16. f4 {[%clk 0:02:20]}  e4 {[%clk 0:02:01]} 17. Bc2 {[%clk 0:02:20]}  Nf6 {[%clk 0:01:57]} 18. b4 {[%clk 0:02:11]}  h5 {[%clk 0:01:56]} 19. Na4 {[%clk 0:02:06]}  h4 {[%clk 0:01:54]} 20. Rb1 {[%clk 0:01:48]}  Kf7 {[%clk 0:01:51]} 21. Nxb6 {[%clk 0:01:21]}  Qxb6 {[%clk 0:01:50]} 22. bxc5 {[%clk 0:01:19]}  Qd8 {[%clk 0:01:38]} 23. cxd6 {[%clk 0:01:18]}  Qxd6 {[%clk 0:01:30]} 24. c5 {[%clk 0:01:18]}  Qd8 {[%clk 0:01:28]} 25. d6 {[%clk 0:01:13]}  Nc6 {[%clk 0:01:27]} 26. Bb3+ {[%clk 0:01:09]}  Kg6 {[%clk 0:01:27]} 27. Nd4 {[%clk 0:01:06]}  Bd7 {[%clk 0:01:22]} 28. Bg1 {[%clk 0:00:26]}  Qe8 {[%clk 0:01:21]} 29. Ba2 {[%clk 0:00:23]}  Rc8 {[%clk 0:01:18]} 30. Rb6 {[%clk 0:00:22]}  h3 {[%clk 0:01:13]} 31. Rfb1 {[%clk 0:00:19]}  Ng4 {[%clk 0:01:02]} 32. Nxc6 {[%clk 0:00:13]}  Rxc6 {[%clk 0:01:03]} 33. Rxc6 {[%clk 0:00:12]}  Bxc6 {[%clk 0:01:03]} 34. Bd5 {[%clk 0:00:04]}  e3 {[%clk 0:00:56]} 35. Qd3 {[%clk 0:00:05]}  Bxd5 {[%clk 0:00:48]} 36. Qxd5 {[%clk 0:00:06]}  Nf2+ {[%clk 0:00:49]} 37. Bxf2 {[%clk 0:00:05]}  exf2 {[%clk 0:00:50]} 38. gxh3 {[%clk 0:00:03]}  Qe1+ {[%clk 0:00:48]} 39. Kg2 {[%clk 0:00:03]}  f1=Q# {[%clk 0:00:48]} 0-1


[Site "https://www.chess.com"]

[Event "Titled Tuesday Blitz July 18 Late 2023"]
[White "Rustemov, Alexander"]
[Black "Trifan, Andrei Ioan"]
[WhiteFideId "4119002"]
[BlackFideId "12967068"]
[WhiteElo "2876"]
[BlackElo "2546"]
[Result "0-1"]
[Round "3"]
[TimeControl "180+2"]
[Date "2023.07.18"]
[WhiteClock "0:00:00"]
[BlackClock "0:00:24"]
[Board "48"]

1. d4 {[%clk 0:03:00]}  Nf6 {[%clk 0:02:59]} 2. c4 {[%clk 0:03:01]}  g6 {[%clk 0:02:59]} 3. Nf3 {[%clk 0:03:01]}  Bg7 {[%clk 0:02:59]} 4. g3 {[%clk 0:03:02]}  O-O {[%clk 0:02:59]} 5. Bg2 {[%clk 0:03:03]}  d6 {[%clk 0:02:58]} 6. O-O {[%clk 0:03:03]}  Nbd7 {[%clk 0:02:58]} 7. Nc3 {[%clk 0:03:03]}  e5 {[%clk 0:02:57]} 8. e4 {[%clk 0:03:04]}  exd4 {[%clk 0:02:53]} 9. Nxd4 {[%clk 0:03:05]}  c6 {[%clk 0:02:53]} 10. h3 {[%clk 0:03:05]}  Qc7 {[%clk 0:02:53]} 11. Be3 {[%clk 0:03:03]}  Re8 {[%clk 0:02:52]} 12. Qc2 {[%clk 0:03:01]}  a5 {[%clk 0:02:51]} 13. Rfe1 {[%clk 0:03:00]}  Nc5 {[%clk 0:02:51]} 14. b3 {[%clk 0:02:56]}  Nfd7 {[%clk 0:02:51]} 15. Rad1 {[%clk 0:02:55]}  Nf8 {[%clk 0:02:45]} 16. f4 {[%clk 0:02:53]}  Nfe6 {[%clk 0:02:39]} 17. Ndb5 {[%clk 0:02:48]}  cxb5 {[%clk 0:02:31]} 18. Nxb5 {[%clk 0:02:49]}  Qe7 {[%clk 0:02:27]} 19. Nxd6 {[%clk 0:02:49]}  Rd8 {[%clk 0:02:27]} 20. e5 {[%clk 0:02:47]}  Bd7 {[%clk 0:02:22]} 21. g4 {[%clk 0:02:40]}  Bc6 {[%clk 0:02:16]} 22. f5 {[%clk 0:02:37]}  Bxe5 {[%clk 0:02:07]} 23. fxe6 {[%clk 0:01:54]}  Bxd6 {[%clk 0:01:55]} 24. exf7+ {[%clk 0:01:52]}  Qxf7 {[%clk 0:01:49]} 25. Rxd6 {[%clk 0:01:52]}  Rxd6 {[%clk 0:01:48]} 26. Bxc5 {[%clk 0:01:52]}  Re6 {[%clk 0:01:43]} 27. Rf1 {[%clk 0:01:48]}  Rf6 {[%clk 0:01:42]} 28. Re1 {[%clk 0:01:39]}  Re8 {[%clk 0:01:38]} 29. Qd2 {[%clk 0:01:36]}  Rxe1+ {[%clk 0:01:33]} 30. Qxe1 {[%clk 0:01:36]}  Bxg2 {[%clk 0:01:30]} 31. Kxg2 {[%clk 0:01:37]}  Qe6 {[%clk 0:01:29]} 32. Qxe6+ {[%clk 0:01:02]}  Rxe6 {[%clk 0:01:30]} 33. Kf3 {[%clk 0:01:02]}  a4 {[%clk 0:01:11]} 34. Be3 {[%clk 0:00:58]}  axb3 {[%clk 0:01:09]} 35. axb3 {[%clk 0:00:59]}  Ra6 {[%clk 0:01:08]} 36. b4 {[%clk 0:00:56]}  Kf7 {[%clk 0:01:06]} 37. Ke4 {[%clk 0:00:55]}  Ke6 {[%clk 0:01:05]} 38. b5 {[%clk 0:00:56]}  Ra1 {[%clk 0:01:02]} 39. c5 {[%clk 0:00:49]}  Rh1 {[%clk 0:00:56]} 40. g5 {[%clk 0:00:38]}  Rxh3 {[%clk 0:00:51]} 41. Bf2 {[%clk 0:00:17]}  Rb3 {[%clk 0:00:47]} 42. b6 {[%clk 0:00:17]}  Rb4+ {[%clk 0:00:46]} 43. Kd3 {[%clk 0:00:16]}  Kd5 {[%clk 0:00:45]} 44. Kc3 {[%clk 0:00:16]}  Rc4+ {[%clk 0:00:38]} 45. Kd3 {[%clk 0:00:16]}  Rg4 {[%clk 0:00:38]} 46. Be3 {[%clk 0:00:16]}  Rg2 {[%clk 0:00:34]} 47. Kc3 {[%clk 0:00:10]}  Rg4 {[%clk 0:00:29]} 48. Kd3 {[%clk 0:00:10]}  Rb4 {[%clk 0:00:28]} 49. Kc3 {[%clk 0:00:10]}  Ra4 {[%clk 0:00:26]} 50. Kd3 {[%clk 0:00:11]}  Ra3+ {[%clk 0:00:27]} 51. Ke2 {[%clk 0:00:11]}  Ke4 {[%clk 0:00:27]} 52. Bf2 {[%clk 0:00:10]}  Rb3 {[%clk 0:00:25]} 53. Bg1 {[%clk 0:00:09]}  Rb2+ {[%clk 0:00:25]} 54. Ke1 {[%clk 0:00:07]}  Kd5 {[%clk 0:00:21]} 55. Be3 {[%clk 0:00:07]}  Rc2 {[%clk 0:00:20]} 56. Kd1 {[%clk 0:00:07]}  Rxc5 {[%clk 0:00:20]} 57. Bxc5 {[%clk 0:00:06]}  Kxc5 {[%clk 0:00:21]} 58. Kd2 {[%clk 0:00:07]}  Kxb6 {[%clk 0:00:22]} 59. Ke3 {[%clk 0:00:08]}  Kc5 {[%clk 0:00:22]} 60. Ke4 {[%clk 0:00:08]}  b5 {[%clk 0:00:22]} 61. Ke5 {[%clk 0:00:08]}  b4 {[%clk 0:00:22]} 62. Kf6 {[%clk 0:00:09]}  b3 {[%clk 0:00:23]} 63. Kg7 {[%clk 0:00:10]}  b2 {[%clk 0:00:24]} 64. Kxh7 {[%clk 0:00:11]}  b1=Q {[%clk 0:00:24]} 65. Kh6 {[%clk 0:00:00]}  Qf5 {[%clk 0:00:24]} 0-1


[Site "https://www.chess.com"]

[Event "Titled Tuesday Blitz July 18 Late 2023"]
[White "Besedes, Danilo"]
[Black "Nguyen, Ngoc Truong Son"]
[WhiteFideId "946796"]
[BlackFideId "12401110"]
[WhiteElo "2521"]
[BlackElo "2876"]
[Result "1-0"]
[Round "3"]
[TimeControl "180+2"]
[Date "2023.07.18"]
[WhiteClock "0:01:00"]
[BlackClock "0:00:02"]
[Board "49"]

1. b3 {[%clk 0:03:00]}  Nf6 {[%clk 0:02:57]} 2. Bb2 {[%clk 0:03:01]}  g6 {[%clk 0:02:57]} 3. Bxf6 {[%clk 0:02:58]}  exf6 {[%clk 0:02:58]} 4. c4 {[%clk 0:02:58]}  f5 {[%clk 0:02:58]} 5. Nc3 {[%clk 0:02:59]}  Bg7 {[%clk 0:02:59]} 6. Rc1 {[%clk 0:02:59]}  O-O {[%clk 0:02:57]} 7. g3 {[%clk 0:03:00]}  d6 {[%clk 0:02:41]} 8. Bg2 {[%clk 0:03:00]}  Nd7 {[%clk 0:02:42]} 9. e3 {[%clk 0:03:00]}  Nf6 {[%clk 0:02:42]} 10. Nge2 {[%clk 0:02:58]}  c6 {[%clk 0:02:22]} 11. d4 {[%clk 0:02:57]}  Bd7 {[%clk 0:02:17]} 12. O-O {[%clk 0:02:55]}  a5 {[%clk 0:02:16]} 13. a3 {[%clk 0:02:54]}  Qe7 {[%clk 0:02:15]} 14. b4 {[%clk 0:02:55]}  axb4 {[%clk 0:02:14]} 15. axb4 {[%clk 0:02:55]}  h5 {[%clk 0:02:13]} 16. b5 {[%clk 0:02:54]}  h4 {[%clk 0:02:13]} 17. Qb3 {[%clk 0:02:46]}  cxb5 {[%clk 0:02:07]} 18. Nxb5 {[%clk 0:02:40]}  Bc6 {[%clk 0:02:07]} 19. Nbc3 {[%clk 0:02:37]}  Bxg2 {[%clk 0:02:04]} 20. Kxg2 {[%clk 0:02:38]}  Ne4 {[%clk 0:01:57]} 21. Rfd1 {[%clk 0:02:32]}  h3+ {[%clk 0:01:56]} 22. Kg1 {[%clk 0:02:27]}  Ra5 {[%clk 0:01:44]} 23. Nf4 {[%clk 0:02:20]}  Ng5 {[%clk 0:01:39]} 24. Nfd5 {[%clk 0:02:06]}  Rxd5 {[%clk 0:01:31]} 25. cxd5 {[%clk 0:02:04]}  Rc8 {[%clk 0:01:20]} 26. Qb1 {[%clk 0:02:02]}  Nf3+ {[%clk 0:00:41]} 27. Kh1 {[%clk 0:01:58]}  Qg5 {[%clk 0:00:40]} 28. Ne2 {[%clk 0:01:39]}  Rf8 {[%clk 0:00:25]} 29. e4 {[%clk 0:01:31]}  Re8 {[%clk 0:00:23]} 30. e5 {[%clk 0:01:28]}  Nd2 {[%clk 0:00:20]} 31. Qd3 {[%clk 0:01:23]}  Ne4 {[%clk 0:00:18]} 32. Kg1 {[%clk 0:01:20]}  dxe5 {[%clk 0:00:16]} 33. dxe5 {[%clk 0:01:20]}  Bxe5 {[%clk 0:00:15]} 34. f4 {[%clk 0:01:11]}  Qg4 {[%clk 0:00:14]} 35. fxe5 {[%clk 0:01:10]}  Ng5 {[%clk 0:00:15]} 36. Rf1 {[%clk 0:01:05]}  Rxe5 {[%clk 0:00:14]} 37. Nf4 {[%clk 0:01:06]}  Ne4 {[%clk 0:00:11]} 38. d6 {[%clk 0:01:02]}  Qg5 {[%clk 0:00:08]} 39. d7 {[%clk 0:01:00]}  Nc5 {[%clk 0:00:02]} 40. d8=Q+ {[%clk 0:01:00]} 1-0


[Site "https://www.chess.com"]